[Event "Titled Tuesday Blitz May 23 Early 2023"]
[White "Zakhartsov, Vladimir"]
[Black "Fernandez Guillen, Ernesto J."]
[WhiteFideId "4145097"]
[BlackFideId "3512428"]
[WhiteElo "2495"]
[BlackElo "2429"]
[Result "1-0"]
[Round "07"]
[TimeControl "180+2"]
[Date "2023.05.23"]
[WhiteClock "0:00:04"]
[BlackClock "0:00:00"]

1. e4 {[%clk 0:02:49]}  e5 {[%clk 0:02:54]} 2. Nf3 {[%clk 0:02:49]}  Nc6 {[%clk 0:02:54]} 3. Nc3 {[%clk 0:02:50]}  g6 {[%clk 0:02:54]} 4. d4 {[%clk 0:02:48]}  exd4 {[%clk 0:02:55]} 5. Nxd4 {[%clk 0:02:48]}  Bg7 {[%clk 0:02:55]} 6. Be3 {[%clk 0:02:46]}  Nge7 {[%clk 0:02:54]} 7. Bc4 {[%clk 0:02:42]}  O-O {[%clk 0:02:54]} 8. O-O {[%clk 0:02:42]}  Ne5 {[%clk 0:02:54]} 9. Be2 {[%clk 0:02:39]}  d5 {[%clk 0:02:54]} 10. f4 {[%clk 0:02:36]}  Nd7 {[%clk 0:02:52]} 11. exd5 {[%clk 0:02:34]}  Nf6 {[%clk 0:02:52]} 12. f5 {[%clk 0:02:26]}  Nexd5 {[%clk 0:02:47]} 13. Nxd5 {[%clk 0:02:26]}  Nxd5 {[%clk 0:02:48]} 14. Bf2 {[%clk 0:02:23]}  c5 {[%clk 0:02:46]} 15. Nb3 {[%clk 0:02:12]}  Bxf5 {[%clk 0:02:39]} 16. Bf3 {[%clk 0:01:59]}  Nb4 {[%clk 0:02:24]} 17. Bxc5 {[%clk 0:01:54]}  Nxc2 {[%clk 0:02:23]} 18. Bxf8 {[%clk 0:01:30]}  Qxf8 {[%clk 0:02:12]} 19. Bxb7 {[%clk 0:01:15]}  Nxa1 {[%clk 0:02:10]} 20. Qxa1 {[%clk 0:00:51]}  Rd8 {[%clk 0:01:59]} 21. Bf3 {[%clk 0:00:47]}  Qb4 {[%clk 0:01:49]} 22. Qc1 {[%clk 0:00:41]}  Qb6+ {[%clk 0:01:39]} 23. Kh1 {[%clk 0:00:40]}  a5 {[%clk 0:01:39]} 24. Qc6 {[%clk 0:00:37]}  Qb8 {[%clk 0:00:37]} 25. Nxa5 {[%clk 0:00:31]}  Qxb2 {[%clk 0:00:37]} 26. a4 {[%clk 0:00:22]}  Rc8 {[%clk 0:00:27]} 27. Qb5 {[%clk 0:00:20]}  Qc3 {[%clk 0:00:15]} 28. Qd5 {[%clk 0:00:04]}  Bf6 {[%clk 0:00:14]} 29. Nc6 {[%clk 0:00:04]}  Kg7 {[%clk 0:00:12]} 30. a5 {[%clk 0:00:04]}  Be6 {[%clk 0:00:12]} 31. Qe4 {[%clk 0:00:04]}  Bf5 {[%clk 0:00:12]} 32. Qd5 {[%clk 0:00:05]}  Be6 {[%clk 0:00:10]} 33. Qd6 {[%clk 0:00:05]}  Qc4 {[%clk 0:00:08]} 34. Rd1 {[%clk 0:00:05]}  h5 {[%clk 0:00:04]} 35. h3 {[%clk 0:00:05]}  h4 {[%clk 0:00:04]} 36. Nd4 {[%clk 0:00:04]}  Bxd4 {[%clk 0:00:02]} 37. Qxd4+ {[%clk 0:00:04]}  Qxd4 {[%clk 0:00:03]} 38. Rxd4 {[%clk 0:00:04]}  Rc1+ {[%clk 0:00:03]} 39. Rd1 {[%clk 0:00:04]}  Rxd1+ {[%clk 0:00:03]} 40. Bxd1 {[%clk 0:00:04]}  Bc4 {[%clk 0:00:04]} 41. Kg1 {[%clk 0:00:04]}  Ba6 {[%clk 0:00:05]} 42. Kf2 {[%clk 0:00:04]}  Kf6 {[%clk 0:00:06]} 43. Be2 {[%clk 0:00:05]}  Bb7 {[%clk 0:00:05]} 44. a6 {[%clk 0:00:05]}  Bd5 {[%clk 0:00:00]} 45. Bf3 {[%clk 0:00:04]} 1-0


[Site "https://www.chess.com"]

[Event "Titled Tuesday Blitz May 23 Early 2023"]
[White "Papasimakopoulos, Alexandros"]
[Black "Narayanan, Srinath"]
[WhiteFideId "4244125"]
[BlackFideId "5018420"]
[WhiteElo "2359"]
[BlackElo "2438"]
[Result "0-1"]
[Round "07"]
[TimeControl "180+2"]
[Date "2023.05.23"]
[WhiteClock "0:00:04"]
[BlackClock "0:01:08"]

1. d4 {[%clk 0:03:00]}  Nf6 {[%clk 0:02:57]} 2. c4 {[%clk 0:03:01]}  e6 {[%clk 0:02:58]} 3. Nc3 {[%clk 0:03:00]}  Bb4 {[%clk 0:02:58]} 4. e3 {[%clk 0:02:57]}  b6 {[%clk 0:02:56]} 5. Bd2 {[%clk 0:02:55]}  Bb7 {[%clk 0:02:54]} 6. Nf3 {[%clk 0:02:55]}  Bxc3 {[%clk 0:02:54]} 7. Bxc3 {[%clk 0:02:55]}  Ne4 {[%clk 0:02:55]} 8. Rc1 {[%clk 0:02:54]}  O-O {[%clk 0:02:52]} 9. Bd3 {[%clk 0:02:55]}  f5 {[%clk 0:02:51]} 10. O-O {[%clk 0:02:53]}  d6 {[%clk 0:02:51]} 11. Be1 {[%clk 0:02:52]}  Nd7 {[%clk 0:02:52]} 12. Nd2 {[%clk 0:02:48]}  Qg5 {[%clk 0:02:48]} 13. f4 {[%clk 0:02:37]}  Qg6 {[%clk 0:02:43]} 14. Nxe4 {[%clk 0:02:32]}  Bxe4 {[%clk 0:02:40]} 15. Bxe4 {[%clk 0:02:32]}  fxe4 {[%clk 0:02:41]} 16. Qa4 {[%clk 0:02:29]}  Nf6 {[%clk 0:02:38]} 17. h3 {[%clk 0:02:18]}  Qe8 {[%clk 0:02:36]} 18. Qxe8 {[%clk 0:02:16]}  Rfxe8 {[%clk 0:02:37]} 19. Bh4 {[%clk 0:02:15]}  Nd7 {[%clk 0:02:35]} 20. b4 {[%clk 0:02:01]}  a5 {[%clk 0:02:32]} 21. b5 {[%clk 0:02:01]}  a4 {[%clk 0:02:31]} 22. a3 {[%clk 0:01:58]}  e5 {[%clk 0:02:07]} 23. fxe5 {[%clk 0:01:53]}  dxe5 {[%clk 0:02:08]} 24. Bg3 {[%clk 0:01:49]}  exd4 {[%clk 0:02:00]} 25. exd4 {[%clk 0:01:50]}  Rac8 {[%clk 0:02:00]} 26. Rfe1 {[%clk 0:01:46]}  c6 {[%clk 0:01:59]} 27. bxc6 {[%clk 0:01:42]}  Rxc6 {[%clk 0:02:00]} 28. d5 {[%clk 0:01:38]}  Rg6 {[%clk 0:02:00]} 29. Kh2 {[%clk 0:01:28]}  Nc5 {[%clk 0:01:58]} 30. Rc3 {[%clk 0:01:20]}  Kf7 {[%clk 0:01:53]} 31. Bf2 {[%clk 0:01:08]}  Nd3 {[%clk 0:01:47]} 32. Rf1 {[%clk 0:00:57]}  Rf6 {[%clk 0:01:46]} 33. Kg1 {[%clk 0:00:57]}  e3 {[%clk 0:01:28]} 34. Bh4 {[%clk 0:00:19]}  Rxf1+ {[%clk 0:01:28]} 35. Kxf1 {[%clk 0:00:19]}  e2+ {[%clk 0:01:26]} 36. Kg1 {[%clk 0:00:20]}  e1=Q+ {[%clk 0:01:23]} 37. Bxe1 {[%clk 0:00:20]}  Rxe1+ {[%clk 0:01:24]} 38. Kh2 {[%clk 0:00:21]}  Nc5 {[%clk 0:01:23]} 39. Rf3+ {[%clk 0:00:20]}  Ke7 {[%clk 0:01:22]} 40. h4 {[%clk 0:00:18]}  Re4 {[%clk 0:01:22]} 41. Kh3 {[%clk 0:00:19]}  Rxc4 {[%clk 0:01:22]} 42. Rg3 {[%clk 0:00:20]}  g6 {[%clk 0:01:22]} 43. h5 {[%clk 0:00:20]}  gxh5 {[%clk 0:01:22]} 44. Rg7+ {[%clk 0:00:20]}  Kd6 {[%clk 0:01:22]} 45. Rxh7 {[%clk 0:00:21]}  Kxd5 {[%clk 0:01:10]} 46. Rxh5+ {[%clk 0:00:20]}  Kd6 {[%clk 0:01:11]} 47. Rh6+ {[%clk 0:00:20]}  Ne6 {[%clk 0:01:11]} 48. g4 {[%clk 0:00:16]}  Rc3+ {[%clk 0:01:12]} 49. Kh4 {[%clk 0:00:16]}  Rxa3 {[%clk 0:01:13]} 50. g5 {[%clk 0:00:17]}  Ra1 {[%clk 0:01:13]} 51. Kg4 {[%clk 0:00:15]}  Rg1+ {[%clk 0:01:13]} 52. Kf5 {[%clk 0:00:16]}  Rxg5+ {[%clk 0:01:13]} 53. Ke4 {[%clk 0:00:16]}  a3 {[%clk 0:01:11]} 54. Kd3 {[%clk 0:00:14]}  a2 {[%clk 0:01:08]} 55. Rh1 {[%clk 0:00:13]}  Ra5 {[%clk 0:01:08]} 56. Ra1 {[%clk 0:00:14]}  b5 {[%clk 0:01:07]} 57. Kc3 {[%clk 0:00:15]}  Kc5 {[%clk 0:01:08]} 58. Kb2 {[%clk 0:00:14]}  Nd4 {[%clk 0:01:08]} 59. Rc1+ {[%clk 0:00:14]}  Kd5 {[%clk 0:01:09]} 60. Ra1 {[%clk 0:00:04]}  b4 {[%clk 0:01:08]} 0-1


[Site "https://www.chess.com"]

[Event "Titled Tuesday Blitz May 23 Early 2023"]
[White "Tasev, Dejan"]
[Black "Sychev, Klementy"]
[WhiteFideId "936618"]
[BlackFideId "4114060"]
[WhiteElo "2244"]
[BlackElo "2583"]
[Result "1-0"]
[Round "07"]
[TimeControl "180+2"]
[Date "2023.05.23"]
[WhiteClock "0:00:44"]
[BlackClock "0:00:00"]

1. e4 {[%clk 0:03:00]}  e5 {[%clk 0:03:00]} 2. Nf3 {[%clk 0:03:00]}  Nc6 {[%clk 0:03:00]} 3. Bc4 {[%clk 0:02:57]}  Nf6 {[%clk 0:03:00]} 4. d3 {[%clk 0:02:57]}  Bc5 {[%clk 0:02:59]} 5. Nc3 {[%clk 0:02:57]}  h6 {[%clk 0:02:56]} 6. Bb3 {[%clk 0:02:57]}  a6 {[%clk 0:02:48]} 7. h3 {[%clk 0:02:57]}  d6 {[%clk 0:02:46]} 8. Be3 {[%clk 0:02:56]}  Be6 {[%clk 0:02:43]} 9. Qd2 {[%clk 0:02:55]}  Bxb3 {[%clk 0:02:19]} 10. axb3 {[%clk 0:02:54]}  Bb4 {[%clk 0:02:19]} 11. O-O {[%clk 0:02:41]}  d5 {[%clk 0:02:16]} 12. exd5 {[%clk 0:02:36]}  Nxd5 {[%clk 0:02:16]} 13. Qe1 {[%clk 0:02:34]}  O-O {[%clk 0:02:05]} 14. Bd2 {[%clk 0:02:32]}  Re8 {[%clk 0:01:41]} 15. Nxd5 {[%clk 0:02:25]}  Bxd2 {[%clk 0:01:39]} 16. Qxd2 {[%clk 0:02:22]}  Qxd5 {[%clk 0:01:38]} 17. Rfe1 {[%clk 0:02:22]}  Re6 {[%clk 0:01:21]} 18. Ra4 {[%clk 0:02:17]}  Rae8 {[%clk 0:01:15]} 19. Rg4 {[%clk 0:02:11]}  f5 {[%clk 0:01:13]} 20. Rg3 {[%clk 0:02:02]}  Kh8 {[%clk 0:01:04]} 21. Qc3 {[%clk 0:01:55]}  b5 {[%clk 0:00:54]} 22. b4 {[%clk 0:01:51]}  Kh7 {[%clk 0:00:40]} 23. Ra1 {[%clk 0:01:32]}  Ra8 {[%clk 0:00:22]} 24. Re1 {[%clk 0:01:26]}  Qd6 {[%clk 0:00:20]} 25. Qb3 {[%clk 0:01:16]}  Rae8 {[%clk 0:00:19]} 26. c3 {[%clk 0:01:13]}  e4 {[%clk 0:00:17]} 27. dxe4 {[%clk 0:01:11]}  fxe4 {[%clk 0:00:16]} 28. Nh2 {[%clk 0:01:06]}  Qf4 {[%clk 0:00:15]} 29. Qc2 {[%clk 0:01:05]}  Rd8 {[%clk 0:00:10]} 30. Rg4 {[%clk 0:01:01]}  Qf5 {[%clk 0:00:10]} 31. Rgxe4 {[%clk 0:00:56]}  Rde8 {[%clk 0:00:06]} 32. f3 {[%clk 0:00:56]}  Ne5 {[%clk 0:00:04]} 33. Qe2 {[%clk 0:00:54]}  Ng6 {[%clk 0:00:01]} 34. Rxe6 {[%clk 0:00:52]}  Nf4 {[%clk 0:00:00]} 35. Qe4 {[%clk 0:00:44]} 1-0


[Site "https://www.chess.com"]

[Event "Titled Tuesday Blitz May 23 Early 2023"]
[White "Dubov, Daniil"]
[Black "Suyarov, Mukhammadzokhid"]
[WhiteFideId "24126055"]
[BlackFideId "14210495"]
[WhiteElo "2793"]
[BlackElo "2361"]
[Result "0-1"]
[Round "07"]
[TimeControl "180+2"]
[Date "2023.05.23"]
[WhiteClock "0:00:01"]
[BlackClock "0:00:24"]

1. d4 {[%clk 0:02:56]}  e6 {[%clk 0:02:56]} 2. Nf3 {[%clk 0:02:57]}  Nf6 {[%clk 0:02:56]} 3. Bg5 {[%clk 0:02:57]}  b6 {[%clk 0:02:56]} 4. e4 {[%clk 0:02:47]}  h6 {[%clk 0:02:55]} 5. Bxf6 {[%clk 0:02:47]}  Qxf6 {[%clk 0:02:56]} 6. Nbd2 {[%clk 0:02:48]}  Bb7 {[%clk 0:02:55]} 7. c3 {[%clk 0:02:49]}  g6 {[%clk 0:02:55]} 8. Bc4 {[%clk 0:02:48]}  Bg7 {[%clk 0:02:55]} 9. O-O {[%clk 0:02:48]}  O-O {[%clk 0:02:55]} 10. Re1 {[%clk 0:02:49]}  a6 {[%clk 0:02:53]} 11. Qc2 {[%clk 0:02:49]}  d6 {[%clk 0:02:52]} 12. Nf1 {[%clk 0:02:49]}  Nd7 {[%clk 0:02:52]} 13. Rad1 {[%clk 0:02:49]}  Qe7 {[%clk 0:02:49]} 14. a4 {[%clk 0:02:48]}  a5 {[%clk 0:02:35]} 15. Ne3 {[%clk 0:02:39]}  h5 {[%clk 0:02:34]} 16. h3 {[%clk 0:02:38]}  Bh6 {[%clk 0:02:33]} 17. Nf1 {[%clk 0:02:34]}  Bf4 {[%clk 0:02:30]} 18. Bd3 {[%clk 0:02:25]}  Rfd8 {[%clk 0:02:24]} 19. Qe2 {[%clk 0:02:16]}  Bc6 {[%clk 0:02:15]} 20. Bb5 {[%clk 0:02:16]}  Bxb5 {[%clk 0:02:16]} 21. Qxb5 {[%clk 0:02:15]}  Rac8 {[%clk 0:02:13]} 22. g3 {[%clk 0:02:09]}  Bh6 {[%clk 0:02:12]} 23. Kg2 {[%clk 0:02:10]}  c6 {[%clk 0:02:11]} 24. Qb3 {[%clk 0:02:09]}  Bg7 {[%clk 0:02:04]} 25. Ne3 {[%clk 0:02:09]}  Rb8 {[%clk 0:01:58]} 26. Qc4 {[%clk 0:02:05]}  Rdc8 {[%clk 0:01:57]} 27. Qd3 {[%clk 0:02:05]}  b5 {[%clk 0:01:54]} 28. Ra1 {[%clk 0:02:01]}  b4 {[%clk 0:01:46]} 29. Nc4 {[%clk 0:01:39]}  bxc3 {[%clk 0:01:39]} 30. bxc3 {[%clk 0:01:30]}  Ra8 {[%clk 0:01:35]} 31. Rab1 {[%clk 0:01:27]}  d5 {[%clk 0:01:32]} 32. Nb6 {[%clk 0:01:22]}  Nxb6 {[%clk 0:01:29]} 33. Rxb6 {[%clk 0:01:23]}  Qa3 {[%clk 0:01:29]} 34. Qc2 {[%clk 0:01:23]}  dxe4 {[%clk 0:01:22]} 35. Rxe4 {[%clk 0:01:21]}  c5 {[%clk 0:01:21]} 36. d5 {[%clk 0:00:59]}  exd5 {[%clk 0:01:12]} 37. Rb3 {[%clk 0:00:55]}  Qxb3 {[%clk 0:01:12]} 38. Qxb3 {[%clk 0:00:55]}  dxe4 {[%clk 0:01:13]} 39. Ng5 {[%clk 0:00:56]}  Rc7 {[%clk 0:00:57]} 40. Qd5 {[%clk 0:00:47]}  Re8 {[%clk 0:00:54]} 41. Nxe4 {[%clk 0:00:48]}  Rce7 {[%clk 0:00:53]} 42. Nd6 {[%clk 0:00:45]}  Re5 {[%clk 0:00:47]} 43. Qb7 {[%clk 0:00:35]}  R8e7 {[%clk 0:00:45]} 44. Qa8+ {[%clk 0:00:35]}  Kh7 {[%clk 0:00:45]} 45. Qxa5 {[%clk 0:00:33]}  Rd5 {[%clk 0:00:44]} 46. Nc4 {[%clk 0:00:33]}  Re2 {[%clk 0:00:42]} 47. g4 {[%clk 0:00:18]}  Bf6 {[%clk 0:00:35]} 48. Qa8 {[%clk 0:00:16]}  Rd3 {[%clk 0:00:32]} 49. Qf8 {[%clk 0:00:13]}  Bh4 {[%clk 0:00:23]} 50. Qxf7+ {[%clk 0:00:13]}  Kh8 {[%clk 0:00:21]} 51. Qf8+ {[%clk 0:00:11]}  Kh7 {[%clk 0:00:22]} 52. Qf7+ {[%clk 0:00:11]}  Kh8 {[%clk 0:00:22]} 53. Kg1 {[%clk 0:00:03]}  Rd1+ {[%clk 0:00:19]} 54. Kg2 {[%clk 0:00:02]}  Rxf2+ {[%clk 0:00:20]} 55. Qxf2 {[%clk 0:00:03]}  Bxf2 {[%clk 0:00:21]} 56. Kxf2 {[%clk 0:00:04]}  h4 {[%clk 0:00:19]} 57. Ke2 {[%clk 0:00:03]}  Rh1 {[%clk 0:00:19]} 58. a5 {[%clk 0:00:03]}  Rh2+ {[%clk 0:00:19]} 59. Kd3 {[%clk 0:00:03]}  Rxh3+ {[%clk 0:00:20]} 60. Kc2 {[%clk 0:00:02]}  Rh1 {[%clk 0:00:19]} 61. Kb2 {[%clk 0:00:01]}  h3 {[%clk 0:00:19]} 62. a6 {[%clk 0:00:02]}  Rb1+ {[%clk 0:00:20]} 63. Ka2 {[%clk 0:00:01]}  Ra1+ {[%clk 0:00:20]} 64. Kxa1 {[%clk 0:00:01]}  h2 {[%clk 0:00:21]} 65. Ka2 {[%clk 0:00:01]}  h1=Q {[%clk 0:00:22]} 66. Kb3 {[%clk 0:00:02]}  Qd5 {[%clk 0:00:22]} 67. g5 {[%clk 0:00:01]}  Kg7 {[%clk 0:00:22]} 68. a7 {[%clk 0:00:01]}  Qb7+ {[%clk 0:00:23]} 69. Kc2 {[%clk 0:00:02]}  Qxa7 {[%clk 0:00:23]} 70. Nd6 {[%clk 0:00:03]}  Qd7 {[%clk 0:00:24]} 71. Nc4 {[%clk 0:00:01]}  Qf5+ {[%clk 0:00:24]} 0-1


[Site "https://www.chess.com"]

[Event "Titled Tuesday Blitz May 23 Early 2023"]
[White "Vitiugov, Nikita"]
[Black "Lenderman, Aleksandr"]
[WhiteFideId "4152956"]
[BlackFideId "2021285"]
[WhiteElo "2673"]
[BlackElo "2607"]
[Result "1-0"]
[Round "07"]
[TimeControl "180+2"]
[Date "2023.05.23"]
[WhiteClock "0:01:02"]
[BlackClock "0:02:16"]

1. d4 {[%clk 0:03:00]}  Nf6 {[%clk 0:02:57]} 2. Bg5 {[%clk 0:02:58]}  Ne4 {[%clk 0:02:55]} 3. Bf4 {[%clk 0:02:57]}  c5 {[%clk 0:02:56]} 4. f3 {[%clk 0:02:57]}  Qa5+ {[%clk 0:02:55]} 5. c3 {[%clk 0:02:53]}  Nf6 {[%clk 0:02:55]} 6. Nd2 {[%clk 0:02:52]}  cxd4 {[%clk 0:02:54]} 7. Nb3 {[%clk 0:02:52]}  Qb6 {[%clk 0:02:55]} 8. Qxd4 {[%clk 0:02:51]}  Nc6 {[%clk 0:02:55]} 9. Qxb6 {[%clk 0:02:51]}  axb6 {[%clk 0:02:56]} 10. e4 {[%clk 0:02:50]}  d6 {[%clk 0:02:56]} 11. Bb5 {[%clk 0:02:44]}  Bd7 {[%clk 0:02:56]} 12. Ne2 {[%clk 0:02:42]}  g6 {[%clk 0:02:54]} 13. Be3 {[%clk 0:02:39]}  Na5 {[%clk 0:02:52]} 14. Bxd7+ {[%clk 0:02:33]}  Nxd7 {[%clk 0:02:53]} 15. Nd2 {[%clk 0:02:33]}  Bg7 {[%clk 0:02:52]} 16. Bd4 {[%clk 0:02:25]}  O-O {[%clk 0:02:51]} 17. Bxg7 {[%clk 0:02:23]}  Kxg7 {[%clk 0:02:52]} 18. Nd4 {[%clk 0:02:23]}  Ne5 {[%clk 0:02:51]} 19. Ke2 {[%clk 0:02:23]}  Nac4 {[%clk 0:02:52]} 20. Nxc4 {[%clk 0:02:19]}  Nxc4 {[%clk 0:02:53]} 21. b3 {[%clk 0:02:19]}  Ne5 {[%clk 0:02:52]} 22. a4 {[%clk 0:02:17]}  Nc6 {[%clk 0:02:52]} 23. Nb5 {[%clk 0:02:08]}  Rfc8 {[%clk 0:02:52]} 24. c4 {[%clk 0:02:03]}  Na7 {[%clk 0:02:50]} 25. Nc3 {[%clk 0:02:02]}  Nc6 {[%clk 0:02:50]} 26. Ke3 {[%clk 0:02:01]}  Kf8 {[%clk 0:02:46]} 27. Nd5 {[%clk 0:02:00]}  Ra6 {[%clk 0:02:46]} 28. h4 {[%clk 0:01:58]}  Ne5 {[%clk 0:02:43]} 29. h5 {[%clk 0:01:52]}  g5 {[%clk 0:02:42]} 30. h6 {[%clk 0:01:51]}  f6 {[%clk 0:02:41]} 31. g3 {[%clk 0:01:51]}  Nd7 {[%clk 0:02:39]} 32. f4 {[%clk 0:01:50]}  e6 {[%clk 0:02:37]} 33. Nc3 {[%clk 0:01:47]}  Ke7 {[%clk 0:02:36]} 34. Nb5 {[%clk 0:01:41]}  Nc5 {[%clk 0:02:35]} 35. Rab1 {[%clk 0:01:40]}  Rg8 {[%clk 0:02:34]} 36. f5 {[%clk 0:01:31]}  exf5 {[%clk 0:02:33]} 37. exf5 {[%clk 0:01:31]}  Kd7 {[%clk 0:02:33]} 38. Rhd1 {[%clk 0:01:25]}  Re8+ {[%clk 0:02:33]} 39. Kf3 {[%clk 0:01:22]}  Ne4 {[%clk 0:02:33]} 40. Rd4 {[%clk 0:01:20]}  g4+ {[%clk 0:02:30]} 41. Kf4 {[%clk 0:01:17]}  Ng5 {[%clk 0:02:31]} 42. Rxd6+ {[%clk 0:01:15]}  Kc8 {[%clk 0:02:31]} 43. Rxf6 {[%clk 0:01:14]}  Nh3+ {[%clk 0:02:26]} 44. Kxg4 {[%clk 0:01:14]}  Nf2+ {[%clk 0:02:27]} 45. Kh5 {[%clk 0:01:07]}  Ne4 {[%clk 0:02:26]} 46. Re6 {[%clk 0:01:04]}  Nxg3+ {[%clk 0:02:25]} 47. Kg4 {[%clk 0:01:04]}  Rg8+ {[%clk 0:02:25]} 48. Kf4 {[%clk 0:01:04]}  Nh5+ {[%clk 0:02:16]} 49. Ke5 {[%clk 0:01:02]} 1-0


[Site "https://www.chess.com"]

[Event "Titled Tuesday Blitz May 23 Early 2023"]
[White "Gorovets, Andrey"]
[Black "Galchenko, Matvey"]
[WhiteFideId "13504037"]
[BlackFideId "24175480"]
[WhiteElo "2459"]
[BlackElo "2423"]
[Result "1-0"]
[Round "07"]
[TimeControl "180+2"]
[Date "2023.05.23"]
[WhiteClock "0:00:34"]
[BlackClock "0:00:04"]

1. Nf3 {[%clk 0:02:58]}  c5 {[%clk 0:02:58]} 2. c4 {[%clk 0:02:57]}  g6 {[%clk 0:02:58]} 3. g3 {[%clk 0:02:52]}  Bg7 {[%clk 0:02:58]} 4. Bg2 {[%clk 0:02:53]}  Nc6 {[%clk 0:02:58]} 5. Nc3 {[%clk 0:02:53]}  d6 {[%clk 0:02:59]} 6. O-O {[%clk 0:02:52]}  e6 {[%clk 0:02:59]} 7. e3 {[%clk 0:02:47]}  Nge7 {[%clk 0:02:59]} 8. d4 {[%clk 0:02:46]}  O-O {[%clk 0:03:00]} 9. Rb1 {[%clk 0:02:46]}  b6 {[%clk 0:02:56]} 10. Re1 {[%clk 0:02:24]}  Bb7 {[%clk 0:02:55]} 11. a3 {[%clk 0:02:23]}  Qd7 {[%clk 0:02:40]} 12. b4 {[%clk 0:02:21]}  cxb4 {[%clk 0:02:33]} 13. axb4 {[%clk 0:02:21]}  Rac8 {[%clk 0:02:29]} 14. Qb3 {[%clk 0:02:15]}  Rfd8 {[%clk 0:02:09]} 15. Ba3 {[%clk 0:02:15]}  h5 {[%clk 0:01:56]} 16. Red1 {[%clk 0:02:08]}  d5 {[%clk 0:01:17]} 17. c5 {[%clk 0:02:06]}  bxc5 {[%clk 0:01:17]} 18. dxc5 {[%clk 0:01:56]}  a6 {[%clk 0:01:12]} 19. Na4 {[%clk 0:01:55]}  Qc7 {[%clk 0:01:11]} 20. Bb2 {[%clk 0:01:49]}  e5 {[%clk 0:01:10]} 21. Nb6 {[%clk 0:01:46]}  Rb8 {[%clk 0:01:10]} 22. Ng5 {[%clk 0:01:39]}  Na7 {[%clk 0:00:47]} 23. f4 {[%clk 0:01:32]}  a5 {[%clk 0:00:42]} 24. bxa5 {[%clk 0:01:07]}  Qxc5 {[%clk 0:00:31]} 25. Ba3 {[%clk 0:01:03]}  Qc7 {[%clk 0:00:30]} 26. Rbc1 {[%clk 0:00:59]}  Nac6 {[%clk 0:00:30]} 27. Nxd5 {[%clk 0:00:47]}  Nxd5 {[%clk 0:00:27]} 28. Bxd5 {[%clk 0:00:45]}  Rxd5 {[%clk 0:00:12]} 29. Qxd5 {[%clk 0:00:40]}  Nxa5 {[%clk 0:00:07]} 30. Rxc7 {[%clk 0:00:37]}  Bxd5 {[%clk 0:00:08]} 31. Rxd5 {[%clk 0:00:37]}  exf4 {[%clk 0:00:05]} 32. gxf4 {[%clk 0:00:36]}  Rb3 {[%clk 0:00:04]} 33. Rxa5 {[%clk 0:00:34]} 1-0


[Site "https://www.chess.com"]

[Event "Titled Tuesday Blitz May 23 Early 2023"]
[White "Starozhilov, Leonid"]
[Black "demon64fields"]
[WhiteFideId "14106752"]
[WhiteElo "2352"]
[BlackElo "2872"]
[Result "0-1"]
[Round "07"]
[TimeControl "180+2"]
[Date "2023.05.23"]
[WhiteClock "0:00:00"]
[BlackClock "0:02:36"]

1. e4 {[%clk 0:03:00]}  e6 {[%clk 0:02:59]} 2. d4 {[%clk 0:02:57]}  d5 {[%clk 0:03:00]} 3. Nc3 {[%clk 0:02:58]}  Bb4 {[%clk 0:02:59]} 4. e5 {[%clk 0:02:57]}  c5 {[%clk 0:02:59]} 5. a3 {[%clk 0:02:58]}  Bxc3+ {[%clk 0:03:00]} 6. bxc3 {[%clk 0:02:58]}  Nc6 {[%clk 0:03:00]} 7. h4 {[%clk 0:02:59]}  Bd7 {[%clk 0:02:59]} 8. h5 {[%clk 0:02:58]}  Qa5 {[%clk 0:03:00]} 9. Bd2 {[%clk 0:02:54]}  O-O-O {[%clk 0:03:01]} 10. Rh4 {[%clk 0:02:39]}  c4 {[%clk 0:02:54]} 11. a4 {[%clk 0:02:24]}  f5 {[%clk 0:02:52]} 12. Nf3 {[%clk 0:02:20]}  Nh6 {[%clk 0:02:51]} 13. Be2 {[%clk 0:02:07]}  Nf7 {[%clk 0:02:50]} 14. Kf1 {[%clk 0:02:02]}  g5 {[%clk 0:02:50]} 15. hxg6 {[%clk 0:02:03]}  hxg6 {[%clk 0:02:51]} 16. Rxh8 {[%clk 0:01:59]}  Rxh8 {[%clk 0:02:52]} 17. Kg1 {[%clk 0:02:00]}  g5 {[%clk 0:02:50]} 18. Qb1 {[%clk 0:01:33]}  g4 {[%clk 0:02:48]} 19. Nh2 {[%clk 0:01:21]}  Nxd4 {[%clk 0:02:41]} 20. Qd1 {[%clk 0:00:37]}  Nc6 {[%clk 0:02:38]} 21. f4 {[%clk 0:00:00]}  Qb6+ {[%clk 0:02:36]} 0-1


[Site "https://www.chess.com"]

[Event "Titled Tuesday Blitz May 23 Early 2023"]
[White "bubeliang"]
[Black "Karthik Venkataraman"]
[BlackFideId "25006479"]
[WhiteElo "2617"]
[BlackElo "2419"]
[Result "0-1"]
[Round "07"]
[TimeControl "180+2"]
[Date "2023.05.23"]
[WhiteClock "0:00:09"]
[BlackClock "0:00:50"]

1. e4 {[%clk 0:03:00]}  a5 {[%clk 0:03:00]} 2. d4 {[%clk 0:02:58]}  d6 {[%clk 0:03:00]} 3. Nf3 {[%clk 0:02:56]}  Nd7 {[%clk 0:02:59]} 4. Bc4 {[%clk 0:02:53]}  h6 {[%clk 0:02:53]} 5. O-O {[%clk 0:02:36]}  e5 {[%clk 0:02:51]} 6. dxe5 {[%clk 0:02:33]}  dxe5 {[%clk 0:02:50]} 7. Bxf7+ {[%clk 0:02:27]}  Kxf7 {[%clk 0:02:49]} 8. Nxe5+ {[%clk 0:02:26]}  Kf6 {[%clk 0:02:31]} 9. Qd5 {[%clk 0:01:52]}  Qe8 {[%clk 0:02:17]} 10. Ng4+ {[%clk 0:01:05]}  Ke7 {[%clk 0:02:16]} 11. Bf4 {[%clk 0:01:05]}  Ngf6 {[%clk 0:02:09]} 12. Nxf6 {[%clk 0:00:51]}  Nxf6 {[%clk 0:02:10]} 13. Qc4 {[%clk 0:00:50]}  c6 {[%clk 0:01:55]} 14. Rd1 {[%clk 0:00:47]}  Be6 {[%clk 0:01:55]} 15. Qc5+ {[%clk 0:00:40]}  Kf7 {[%clk 0:01:53]} 16. Qb6 {[%clk 0:00:41]}  Qc8 {[%clk 0:01:43]} 17. Nc3 {[%clk 0:00:39]}  Be7 {[%clk 0:01:40]} 18. Rd2 {[%clk 0:00:34]}  Rd8 {[%clk 0:01:35]} 19. Rad1 {[%clk 0:00:33]}  Rxd2 {[%clk 0:01:32]} 20. Rxd2 {[%clk 0:00:34]}  Nd7 {[%clk 0:01:32]} 21. Qe3 {[%clk 0:00:33]}  Qf8 {[%clk 0:01:18]} 22. Ne2 {[%clk 0:00:28]}  Kg8 {[%clk 0:00:54]} 23. Nd4 {[%clk 0:00:25]}  Qf7 {[%clk 0:00:54]} 24. Qg3 {[%clk 0:00:21]}  Nf6 {[%clk 0:00:51]} 25. f3 {[%clk 0:00:09]}  Nh5 {[%clk 0:00:50]} 0-1


[Site "https://www.chess.com"]